Cogmind - Beta 10.2 @@@ ROGUE MODE // 2021.02.18 @ 11:51:15 Player: Cookie Result: Destroyed by as-98087 with Assembled Rifle Performance ------------- Evolutions (0) 0 Regions Visited (2) 400 Robots Destroyed (9) 45 Value Destroyed (198) 198 Prototype IDs (2) 40 Alien Tech Used (0) 0 Bonus (0) 0 TOTAL SCORE: 683 Bonus ------- None Cogmind --------- Core Integrity 0/250 Matter 275/300 Energy 173/240 System Corruption 0% Temperature Cool (0) Movement Walking (150) Ox1 Location -10/Mines Parts ------- > --- POWER (1) -------- Nuclear Core > --- PROPULSION (2) --- Aluminum Leg Aluminum Leg > --- UTILITY (2) ------ Heat Sink Large Storage Unit > --- WEAPON (2) ------- (None) > --- INVENTORY (10) --- Light Deuterium Engine Advanced Treads Improved Aluminum Leg Improved Aluminum Leg Heavy EM Pulse Gun Heavy EM Pulse Gun Heavy EM Pulse Gun Heavy Particle Cannon Ion Cannon Peak State ------------ > --- POWER ------------ Light Nuclear Core > --- PROPULSION ------- Aluminum Leg Aluminum Leg > --- UTILITY ---------- Heat Sink Large Storage Unit > --- WEAPON ----------- Heavy EM Pulse Gun Particle Gun > --- INVENTORY -------- Light Deuterium Engine Nuclear Core Advanced Treads Improved Aluminum Leg Improved Aluminum Leg Heavy EM Pulse Gun Heavy EM Pulse Gun Heavy Particle Cannon Ion Cannon Grenade Launcher [Rating: 13] Favorites ----------- Power Ion Engine Engine Ion Engine Power Core Light Nuclear Core Propulsion Aluminum Leg Leg Aluminum Leg Wheel Wheel Utility Large Storage Unit Device Heat Sink Storage Large Storage Unit Weapon Medium Laser Energy Gun Medium Laser Launcher Grenade Launcher Build | -11 -10 -10 ------- Run | Scr Mat Min Slots Evolved . | . . . Power . | . . . Propulsion . | . . . Utility . | . . . Weapon . | . . . Parts Attached 17 | 6 7 4 Power 4 | 1 1 2 Engine 2 | 1 1 . Core 2 | . . 2 Reactor . | . . . Propulsion 4 | 2 2 . Treads . | . . . Leg 2 | . 2 . Wheel 2 | 2 . . Hover . | . . . Flight . | . . . Utility 3 | 1 1 1 Device 1 | . . 1 Storage 2 | 1 1 . Processor . | . . . Hackware . | . . . Protection . | . . . Artifact . | . . . Weapon 6 | 2 3 1 Energy Gun 5 | 2 3 . Energy Cannon . | . . . Ballistic Gun . | . . . Ballistic Cannon . | . . . Launcher 1 | . . 1 Special Weapon . | . . . Impact Weapon . | . . . Slashing Weapon . | . . . Piercing Weapon . | . . . Special Melee Weapon . | . . . Unidentified Prototypes . | . . . Parts Lost 9 | . 6 3 Power 2 | . 1 1 Propulsion 2 | . 2 . Utility . | . . . Weapon 5 | . 3 2 Highest Loss Streak 6 | . 6 3 Average Slot Usage (%) 86 | . 82 93 Engine 8 | . 13 1 Core 4 | . . 12 Leg 18 | . 13 28 Wheel 8 | . 13 . Device 3 | . . 9 Storage 14 | . 14 14 Energy Gun 26 | . 26 26 Naked Turns . | . . . Heaviest Build 28 | 13 27 28 Greatest Support 20 | 20 20 20 Greatest Overweight (x) 2 | . 2 1 Average Overweight (x) . | . . 1 Largest Inventory Capacity 10 | 6 10 10 Average Capacity 7 | 5 6 10 Most Carried 10 | 4 6 10 Average Carried 6 | 2 5 9 Final Capacity 10 | 6 10 10 Final Carried 9 | 4 6 9 Class Distribution -------------------- 100% | Mutant Dominant Class ---------------- Mutant | -10/Materials Mutant | -10/Mines Resources | -11 -10 -10 ----------- Run | Scr Mat Min Matter Collected 405 | 260 123 22 Remotely . | . . . Salvage Created 355 | 77 253 25 Parts 20 | 5 15 . Haulers Intercepted . | . . . Recyclers Shooed . | . . . Parts Field Recycled . | . . . Retrieved Matter . | . . . Parts Self-Destructed . | . . . Prevented . | . . . Kills | -11 -10 -10 ------- Run | Scr Mat Min Combat Hostiles Destroyed 8 | . 5 3 Guns 5 | . 5 . AOE 3 | . . 3 Classes Destroyed 5 | 2 2 1 Worker 2 | . 2 . Tunneler 1 | 1 . . Recycler 1 | 1 . . Grunt 5 | . 5 . Assembled 3 | . . 3 Best Kill Streak 4 | 2 4 3 Combat Bots Only 3 | . 2 3 Max Kills in Single Turn 3 | 1 3 3 Gunslinging . | . . . Exploded 3 | . . 3 Melee . | . . . Uniques/NPCs Destroyed . | . . . Combat | -11 -10 -10 -------- Run | Scr Mat Min Damage Taken 890 | . 497 393 Core 250 | . 172 78 Absorbed by Shields . | . . . Core Remaining (%) 100 | 100 . . Volleys Fired 31 | 4 25 2 Largest 2 | 2 2 2 Hottest 115 | 100 115 110 Shots Fired 50 | 8 38 4 Gun 49 | 8 38 3 Cannon . | . . . Launcher 1 | . . 1 Special . | . . . Kinetic . | . . . Thermal 45 | 8 35 2 Explosive 1 | . . 1 Electromagnetic 4 | . 3 1 Robot Hit Streak 6 | 2 6 1 Robot Miss Streak 3 | 3 2 2 Penetration Max . | . . . Secondary Targets . | . . . Shots Hit Robots 31 | 3 27 1 Core Hits 19 | 3 12 4 Critical Hits . | . . . Critical Kills . | . . . Critical Parts Destroyed . | . . . Melee Attacks . | . . . Impact . | . . . Slashing . | . . . Piercing . | . . . Sneak Attacks . | . . . Combat Hostiles . | . . . Follow-up Attacks . | . . . Damage Inflicted 665 | 61 459 145 Guns 477 | 61 416 . Cannons . | . . . Explosions 188 | . 43 145 Melee . | . . . Ramming . | . . . Kinetic . | . . . Thermal 470 | 61 409 . Explosive 145 | . . 145 Electromagnetic 50 | . 50 . Impact . | . . . Slashing . | . . . Piercing . | . . . Highest Corruption . | . . . Average Corruption . | . . . Corruption Purged . | . . . Overload Shots . | . . . Overflow Damage . | . . . Projectiles . | . . . Explosions . | . . . Melee . | . . . Knockbacks . | . . . Impact . | . . . Kinetic . | . . . Secondary . | . . . Self-Inflicted Damage 38 | . 29 9 Shots 2 | . 1 1 Rammed . | . . . Targets Rammed . | . . . Kicked . | . . . Crushed . | . . . Highest Temperature 511 | 116 511 44 Average Temperature 192 | 60 226 26 Received Heat Transfer 370 | . 270 100 Effects 7 | . 7 . Energy Bleed 2 | . 2 . Matter Decay 2 | . 2 . Damage (major) 3 | . 3 . Siege Activations . | . . . Robots Corrupted . | . . . Combat Hostiles . | . . . Parts Fried . | . . . Impact Corruptions . | . . . Robots Melted . | . . . Combat Hostiles . | . . . Parts Melted . | . . . Heat Transferred 1247 | 185 1062 . Parts Sabotaged . | . . . Parts Stolen . | . . . Parts Stripped . | . . . Power Chain Reactions 1 | . 1 . Missiles Intercepted . | . . . Alert | -11 -10 -10 ------- Run | Scr Mat Min Peak Influence 126 | 10 126 17 Initial 17 | . 6 17 Average 21 | 3 27 16 Maximum Alert Level . | . . . Low Security (%) 100 | 100 100 100 Level 1 . | . . . Level 2 . | . . . Level 3 . | . . . Level 4 . | . . . Level 5 . | . . . High Security . | . . . Max Security . | . . . Squads Dispatched 3 | . 2 1 Investigation 1 | . . 1 Extermination . | . . . Reinforcement 2 | . 2 . Assault . | . . . Garrison . | . . . Intercept . | . . . Construction Impeded . | . . . Haulers Reinforced . | . . . Stealth | -11 -10 -10 --------- Run | Scr Mat Min Distress Signals . | . . . Communications Jammed . | . . . Distress Signals . | . . . Times Spotted 18 | . 10 8 Peak Tracking Total 7 | . 3 7 Tactical Retreats 1 | . 1 . Traps | -11 -10 -10 ------- Run | Scr Mat Min Traps Triggered . | . . . Indirectly . | . . . Trap Hack Attempts . | . . . Triggered . | . . . Disarmed . | . . . Reprogrammed . | . . . Reused . | . . . Traps Extracted . | . . . Installed . | . . . Triggered . | . . . Machines | -11 -10 -10 ---------- Run | Scr Mat Min Machines Disabled . | . . . Max in Single Turn . | . . . Machines Sabotaged . | . . . Garrisons Compromised . | . . . Overloaded Fab Kills . | . . . Fab Network Shutdowns . | . . . Hacking | -11 -10 -10 --------- Run | Scr Mat Min Machines Accessed 4 | . 3 1 Terminals 3 | . 3 . Fabricators . | . . . Repair Stations . | . . . Recycling Units . | . . . Scanalyzers . | . . . Garrison Access . | . . . Total Hacks 12 | . 11 1 Successful 7 | . 6 1 Failed 5 | . 5 . Catastrophic . | . . . Database Lockouts . | . . . Manual 6 | . 6 . Terminals 11 | . 11 . Fabricators . | . . . Repair Stations . | . . . Recycling Units . | . . . Scanalyzers . | . . . Garrison Access . | . . . Terminal Hacks 7 | . 6 1 Part Schematic 1 | . 1 . Prototype ID Bank 1 | . 1 . Open Door 1 | . . 1 Branch Access Points 1 | . 1 . Emergency Access Points 1 | . 1 . Terminal Index 1 | . 1 . Dispatch Records 1 | . 1 . Fabricator Hacks . | . . . Repair Station Hacks . | . . . Recycling Unit Hacks . | . . . Scanalyzer . | . . . Garrison Access Hacks . | . . . Unauthorized Hacks . | . . . Terminals . | . . . Fabricators . | . . . Repair Stations . | . . . Recycling Units . | . . . Scanalyzers . | . . . Garrison Access . | . . . Data Cores Recovered . | . . . Used . | . . . Hacking Detections 3 | . 3 . Full Trace Events . | . . . Feedback Events . | . . . Feedback Blocked . | . . . Robot Schematics Acquired . | . . . Robots Built . | . . . Matter . | . . . Time . | . . . Total Robot Build Rating . | . . . Part Schematics Acquired 1 | . 1 . Parts Built . | . . . Matter . | . . . Time . | . . . Total Part Build Rating . | . . . Parts Repaired . | . . . Time . | . . . Parts Recycled . | . . . Recycled Matter . | . . . Retrieved Matter . | . . . Retrieved Components . | . . . Parts Scanalyzed . | . . . Part Schematics Acquired . | . . . Parts Damaged . | . . . Bothacking | -11 -10 -10 ------------ Run | Scr Mat Min Used RIF Installer . | . . . Robots Hacked . | . . . Non-combat . | . . . Combat . | . . . Robot Hacks Applied . | . . . Relay Couplers Released . | . . . Robots Rewired . | . . . Allies Hacked . | . . . Hacks Repelled . | . . . Allies | -11 -10 -10 -------- Run | Scr Mat Min Total Allies . | . . . Largest Group . | . . . Highest-Rated Group . | . . . Highest-Rated Ally . | . . . Total Orders . | . . . Ally Attacks . | . . . Total Damage . | . . . Kills . | . . . Allies Corrupted . | . . . Allies Melted . | . . . Intel | -11 -10 -10 ------- Run | Scr Mat Min Robot Analysis Total . | . . . Derelict Logs Recovered 2 | . . 2 Drone Launches . | . . . Drone Recoveries . | . . . Exploration | -11 -10 -10 ------------- Run | Scr Mat Min Turns Passed 1039 | 80 592 367 Spaces Moved 495 | 68 214 213 Core 9 | 8 1 . Treads . | . . . Legs 323 | . 110 213 Wheels 163 | 60 103 . Hover . | . . . Flight . | . . . Fastest Speed 50 | 50 80 150 Average Speed 120 | 76 105 150 Slowest Speed 150 | 80 150 150 Overloaded Moves . | . . . Propulsion Burnouts . | . . . Robots Hopped . | . . . Cave-ins Triggered . | . . . Exploration Rate (%) 30 | 3 40 48 Regions Visited 2 Branch Regions 1 Pre-discovered Areas 2 | . . 2 Known Exits Taken 1 | . 1 . Unknown Exits Taken 1 | 1 . . Scrap Searched . | . . . Spaces Dug . | . . . Terrain Destroyed 14 | . 2 12 Melee . | . . . Projectile . | . . . AOE 14 | . 2 12 Terrain Rammed . | . . . Walls Destroyed . | . . . Machines Disabled . | . . . Actions | -11 -10 -10 --------- Run | Scr Mat Min Total 890 | 87 546 257 Wait 305 | . 275 30 Move 493 | 67 213 213 Hop . | . . . Pick Up 33 | 10 17 6 Fast Attach 1 | . . 1 Attach 14 | 6 6 2 Detach . | . . . Swap 2 | . 1 1 Drop 11 | . 9 2 Fire 31 | 4 25 2 Melee . | . . . Ram . | . . . Kick . | . . . Crush . | . . . Escape Stasis . | . . . Rewire . | . . . Trap . | . . . Miscellaneous . | . . . Route ------- -11/Scrapyard -10/Materials -10/Mines History --------- Turn | Location | Event 5 | -11/Scrapyard | Discovered new exit (range 16) 81 | -11/Scrapyard | Entered Materials 300 | -10/Materials | Build established: Mutant 420 | -10/Materials | Lost 6 parts (1p2n3w) 448 | -10/Materials | Core integrity fell below 50% 502 | -10/Materials | Identified exit to Mines 673 | -10/Materials | Entered Mines 683 | -10/Mines | Met a Derelict bent on vengeance 685 | -10/Mines | Met a Derelict shopkeep closing up shop 805 | -10/Mines | Learned location of Recycling (-7) 809 | -10/Mines | Learned location of Storage (-7) 999 | -10/Mines | Assembled infested the area 1030 | -10/Mines | Core integrity fell below 20% 1040 | -10/Mines | Destroyed by as-98087 with Assembled Rifle Last Messages --------------- 00789_ K-01 Serf collects debris. 00793_ Acquired Heat Sink. 00796_ K-01 Serf collects debris. 00805_ Acquired derelict log, extracted data. World map updated: -7/Recycling. 00809_ Acquired derelict log, extracted data. World map updated: -7/Storage. 00826_ K-01 Serf collects debris. 00829_ K-01 Serf cleans the Pressure Siphon. 00829_ K-01 Serf collects debris. 00949_ K-01 Serf cleans the Laser Drill. 00973_ K-01 Serf collects debris. 00999_ ALERT: Infestation in the mines, dispatching Demolisher response squad. 01022_ as-78384 destroyed. 01022_ as-62518 destroyed. 01022_ as-62600 destroyed. 01028_ Particle Gun destroyed. 01031_ Lgt. Nuclear Core destroyed. 01036_ Grenade Launcher destroyed. Map ----- +----------------------------------------------------+ | ## ######??????????????????????????? | | """" ## #???????????????????????????????? | | """" #?##????????????????????????????? | | """" ## #####?# #???????????????????????????? | | # ######?????# ##?????????????????????????? | | ## #??????????# ##????????????????????????? | | ?## #???????????# #????????????????????????? | | ??#### ##????????????# ##???####????????????????? | | ###### #??????####??## #??## ##???????????????? | | #?????## ##?# #??# #???????????????? | | ########?????# #?# #### #???????????????? | | #????????????# #?# ## #???????????????? | | #####?????????# ### #???????????????? | | #?????????# """ ##???????????????? | | """ #??######## """ #????????????????? | | """ #??# #### """ ######???????????? | | """ #??# ##### ##?# #???????????? | | #??# #??# ##??# ### ##??????????? | | """ #### #??# #???## ### ### ##?????????? | | """ #??## ##????####?## #?# % #####?????? | | """ ######???# #???????????## #?# % # | | #????????# #???????????## ### % ## ##?????? | | """ #????????# #????######## ## #??????????? | | """ #???????? #????#g a # ##??????????? | | """ #???????? ????#g a # ##?????????? | | #???????? ????#g @ #?????????? | | #####???????? ????#### a ??? | | ???????????? ?????# a | | ???????????? ?????# ######## ? | | ???????????? ??? #### #??????????? | | ????????????? ? ####???##### #??????????? | | ????????????? ## ?????????????## #??????????? | | ???????????????????????????????##### #??????????? | | ???????????????????????????????????? #??????????? | | ???????????????????????????????????? ?????????? | | ???????????????????????????????????? ?????????? | | ???????????????????????????????????? """????????? | | ???????????????????????????????????? ""?????????? | | ???????????????????????????????????? "??????????? | | ???????????????????????????????????? ??????????? | | ?????????????????????????????????????????????????? | | ?????????????????????????????????????????????????? | | ?????????????????????????????????????????????????? | | ?????????????????????????????????????????????????? | | | | | | | | | | | | | +----------------------------------------------------+ Best States ------------- Heat Dissipation 35 Energy Generation 14 Energy Capacity 250 Matter Stores 300 Matter Capacity 300 Sight Range 16 Terrain Scan Density 10 Evasion (%) 44 Item Schematics ----------------- Hover Unit | -10/Materials | Hacked Robot Schematics ------------------ None Fabricated ------------ Nothing Alien Tech Used ----------------- None Achievements -------------- None Challenges ------------ None Game ------ Seed ReflectiveMobileCorpse Manual? 0 Play Time 00:12:04 Cumulative 55.7 hours Start 2021.02.18 @ 11:00:04 End 2021.02.18 @ 11:51:15 Sessions 1 Manual Loads 0 Difficulty Rogue Special Mode None Game No. 90 Rogue 90 Adventurer 0 Explorer 0 Win Type - Total 1 Types 1/0/0/0/0/0/0/0/0 Lore% 40 Gallery% 37 Achievement% 36 Wizard Run 0 Options --------- ASCII 0 Keyboard 0 Movement Mouse Keybinds 0 Fullscreen 1 Font 18/SmallcapsGlow Map View 76x50 Tactical HUD 1 Map Filters NONE Filters NONE Steam 1 RUN: b1acb28d-11d5-41ed-bf45-79846c363b5c